[Event "GER-ch Youth-U14 2022"]
[Site "Willingen"]
[Date "2022.06.06"]
[Round "3.15"]
[White "Winkler, Yonathan"]
[Black "Sinka, Silas"]
[Result "1-0"]
[ECO "C01"]
[WhiteElo "1699"]
[BlackElo "1386"]
[Annotator "NA RC COMBH"]
[PlyCount "49"]
[EventDate "2022.06.05"]
[EventType "swiss"]
[EventRounds "9"]
[EventCountry "GER"]
[SourceTitle "playchess.com"]
[Source "ChessBase"]
[SourceQuality "1"]
[TimeControl "40/4500+30:900+30"]

1. e4 {[%emt 0:00:00]} e6 {[%emt 0:00:00]} 2. d4 {[%emt 0:00:00]} d5 {[%emt 0:00:00]} 3. exd5 {[%emt 0:00:00]} exd5 {[%emt 0:00:00]} 4. Nf3 {[%emt 0:00:00]} Bd6 {[%emt 0:00:00]} 5. c4 {[%emt 0:00:00]} dxc4 {[%emt 0:00:00]} 6. Bxc4 {[%emt 0:00:00]} Nf6 {[%emt 0:00:00]} 7. O-O {[%emt 0:00:00]} O-O {[%emt 0:00:00]} 8. Bg5 {[%emt 0:00:00]} h6 {[%emt 0:00:00]} 9. Bh4 {[%emt 0:00:00]} Bf5 {[%emt 0:00:00]} 10. Qb3 {[%emt 0:00:00]} Nc6 {[%emt 0:00:00]} 11. Qxb7 {[%emt 0:07:13]} Nb4 {[%emt 0:00:00]} 12. a3 {[%emt 0:09:45]} Rb8 {[%emt 0:12:50]} 13. Qxa7 {[%emt 0:00:11]} Qd7 {[%emt 0:00:17]} 14. axb4 {[%emt 0:08:05]} Be4 {[%emt 0:16:40]} 15. Qa2 {[%emt 0:13:52]} Qg4 {[%emt 0:18:11]} 16. Nbd2 {[%emt 0:07:28]} Rxb4 {[%emt 0:17:35]} 17. Nxe4 {[%emt 0:05:57]} Qxe4 {[%emt 0:00:23]} 18. Rfe1 {[%emt 0:03:12]} Qb7 {[%emt 0:00:13]} 19. b3 {[%emt 0:01:00]} Nd5 {[%emt 0:01:01]} 20. Qc2 {[%emt 0:02:28]} f5 {[%emt 0:02:02]} 21. Be7 {[%emt 0:03:12]} Bxe7 {[%emt 0:01:13]} 22. Rxe7 {[%emt 0:00:18]} Kh8 {[%emt 0:00:09]} 23. Bxd5 {[%emt 0:01:58]} Qxd5 {[%emt 0:00:11]} 24. Qc5 {[%emt 0:02:51]} Qxb3 {[%emt 0:00:49]} 25. Re3 {[%emt 0:00:16]} 1-0

[Event "GER-ch Youth-U14 2022"]
[Site "Willingen"]
[Date "2022.06.06"]
[Round "3.16"]
[White "Schreidl, Michael"]
[Black "Kieselbach, Jannik"]
[Result "0-1"]
[ECO "B92"]
[WhiteElo "1614"]
[BlackElo "1631"]
[Annotator "NA RC COMBH"]
[PlyCount "132"]
[EventDate "2022.06.05"]
[EventType "swiss"]
[EventRounds "9"]
[EventCountry "GER"]
[SourceTitle "playchess.com"]
[Source "ChessBase"]
[SourceQuality "1"]
[TimeControl "40/4500+30:900+30"]

1. e4 {[%emt 0:00:00]} c5 {[%emt 0:00:00]} 2. Nf3 {[%emt 0:00:00]} d6 {[%emt 0:00:00]} 3. d4 {[%emt 0:00:00]} cxd4 {[%emt 0:00:00]} 4. Nxd4 {[%emt 0:00:00]} Nf6 {[%emt 0:00:00]} 5. Nc3 {[%emt 0:00:00]} a6 {[%emt 0:00:00]} 6. Be2 {[%emt 0:00:00]} e5 {[%emt 0:00:00]} 7. Nb3 {[%emt 0:00:00]} Be6 {[%emt 0:00:00]} 8. f4 {[%emt 0:00:00]} Nc6 {[%emt 0:00:00]} 9. f5 {[%emt 0:00:00]} Bc8 {[%emt 0:00:00]} 10. g4 {[%emt 0:00:00]} Be7 {[%emt 0:00:00]} 11. Rg1 {[%emt 0:00:00]} h6 {[%emt 0:07:54]} 12. Be3 {[%emt 0:00:00]} b5 {[%emt 0:10:56]} 13. a3 {[%emt 0:00:00]} Bb7 {[%emt 0:07:09]} 14. h4 {[%emt 0:05:10]} Nh7 {[%emt 0:08:11]} 15. h5 {[%emt 0:05:32]} Bh4+ {[%emt 0:00:20]} 16. Kf1 {[%emt 0:01:10]} Bg5 {[%emt 0:00:40]} 17. Bxg5 {[%emt 0:07:48]} Nxg5 {[%emt 0:00:42]} 18. Qd3 {[%emt 0:01:02]} Qd7 {[%emt 0:03:05]} 19. Rd1 {[%emt 0:01:50]} Rd8 {[%emt 0:01:09]} 20. f6 {[%emt 0:11:00]} O-O {[%emt 0:09:53]} 21. Nd5 {[%emt 0:13:02]} Qe6 {[%emt 0:01:08]} 22. Ke1 {[%emt 0:11:42]} gxf6 {[%emt 0:08:11]} 23. Rf1 {[%emt 0:00:23]} Nh7 {[%emt 0:05:42]} 24. Ne3 {[%emt 0:03:40]} Ne7 {[%emt 0:01:54]} 25. Nd5 {[%emt 0:18:41]} Nxd5 {[%emt 0:10:23]} 26. exd5 {[%emt 0:00:05]} Qe7 {[%emt 0:00:27]} 27. Qf5 {[%emt 0:00:33]} Bc8 {[%emt 0:00:11]} 28. Qf2 {[%emt 0:01:15]} Kg7 {[%emt 0:01:11]} 29. Na5 {[%emt 0:00:50]} Bd7 {[%emt 0:01:15]} 30. Nb3 {[%emt 0:01:45]} Ng5 {[%emt 0:01:29]} 31. Qe3 {[%emt 0:00:37]} Rc8 {[%emt 0:01:52]} 32. c3 {[%emt 0:00:09]} Rfe8 {[%emt 0:00:58]} 33. Nd2 {[%emt 0:00:53]} e4 {[%emt 0:01:30]} 34. Rf4 {[%emt 0:01:13]} Qe5 {[%emt 0:01:49]} 35. Nb3 {[%emt 0:01:59]} Re7 {[%emt 0:01:46]} 36. Nd4 {[%emt 0:01:00]} Nf3+ {[%emt 0:01:35]} 37. Kf2 {[%emt 0:00:40]} Nxd4 {[%emt 0:00:41]} 38. Rxd4 {[%emt 0:00:17]} Qg5 {[%emt 0:01:05]} 39. Rfxe4 {[%emt 0:01:27]} Rxe4 {[%emt 0:00:57]} 40. Qxe4 {[%emt 0:00:59]} Re8 {[%emt 0:00:34]} 41. Qf3 {[%emt 0:15:22]} Qh4+ {[%emt 0:15:33]} 42. Kg2 {[%emt 0:00:08]} Qg5 {[%emt 0:00:00]} 43. Kf2 {[%emt 0:00:00]} Re5 {[%emt 0:00:00]} 44. Qg3 {[%emt 0:00:00]} Qc1 {[%emt 0:00:00]} 45. b4 {[%emt 0:01:34]} Qxa3 {[%emt 0:00:00]} 46. Rd1 {[%emt 0:00:29]} Qb2 {[%emt 0:00:26]} 47. Qf3 {[%emt 0:00:26]} Qc2 {[%emt 0:01:01]} 48. Rf1 {[%emt 0:00:23]} Qd2 {[%emt 0:00:28]} 49. Rd1 {[%emt 0:00:34]} Qg5 {[%emt 0:00:17]} 50. Rd4 {[%emt 0:00:33]} Bc8 {[%emt 0:01:12]} 51. Bd3 {[%emt 0:00:28]} Qd2+ {[%emt 0:00:23]} 52. Be2 {[%emt 0:00:13]} Qg5 {[%emt 0:00:32]} 53. Bd3 {[%emt 0:00:03]} Qh4+ {[%emt 0:00:32]} 54. Qg3 {[%emt 0:00:34]} Qxg3+ {[%emt 0:01:22]} 55. Kxg3 {[%emt 0:00:02]} Rg5 {[%emt 0:00:38]} 56. Kh4 {[%emt 0:00:47]} f5 {[%emt 0:00:31]} 57. gxf5 {[%emt 0:00:02]} Bxf5 {[%emt 0:00:09]} 58. Bxf5 {[%emt 0:00:03]} Rxf5 {[%emt 0:00:09]} 59. Rd3 {[%emt 0:00:02]} Kf6 {[%emt 0:00:15]} 60. Kg4 {[%emt 0:00:57]} Rg5+ {[%emt 0:00:17]} 61. Kh4 {[%emt 0:00:03]} Ke5 {[%emt 0:00:42]} 62. Rd4 {[%emt 0:00:29]} f5 {[%emt 0:00:17]} 63. Rd3 {[%emt 0:00:06]} f4 {[%emt 0:00:19]} 64. Rd1 {[%emt 0:00:12]} f3 {[%emt 0:01:04]} 65. Rf1 {[%emt 0:00:17]} Kf4 {[%emt 0:00:11]} 66. Kh3 {[%emt 0:00:07]} Rxh5# 0-1

[Event "GER-ch Youth-U14 2022"]
[Site "Willingen"]
[Date "2022.06.06"]
[Round "3.17"]
[White "Mueller, Maximilian"]
[Black "Goldinov, Daniel"]
[Result "1-0"]
[ECO "B12"]
[WhiteElo "2299"]
[BlackElo "1626"]
[Annotator "TA"]
[PlyCount "59"]
[EventDate "2022.06.05"]
[EventType "swiss"]
[EventRounds "9"]
[EventCountry "GER"]
[SourceTitle "playchess.com"]
[Source "ChessBase"]
[SourceQuality "1"]
[TimeControl "40/4500+30:900+30"]

{[%evp 9,59,27,31,10,88,93,101,78,109,93,106,113,88,49,121,54,114,96,95,103,117,124,138,52,102,93,226,226,230,226,322,334,339,348,332,315,329,299,298,274,885,902,875,860,1481,1251,1754,1658,1510,1360,3307,2700]} 1. e4 {[%emt 0:00:00]} c6 {[%emt 0:00:00]} 2. d4 {[%emt 0:00:00][%cal Bd2d4,Bd4c5][%mdl 32]} d5 {[%emt 0:00:00]} 3. e5 {[%emt 0:00:00]} c5 {[%emt 0:00:00]} 4. dxc5 {[%emt 0:00:00]} Nc6 {[%emt 0:00:00]} 5. a3 {[%emt 0:00:00]} Nxe5 {[%emt 0:00:00]} 6. b4 {[%emt 0:00:00] B12: Caro-Kann: Advance Variation.} a6 {[%emt 0:00:00]} (6... g6 $11 {keeps the balance.}) 7. Bb2 $1 $16 {[%emt 0:00:00]} Nc6 {[%emt 0:00:00] [#]} 8. Nc3 $146 {[%emt 0:00:00][%cal Bb1c3,Bc3a4,Ba4b6][%mdl 32] White is better.} ({Predecessor:} 8. Nf3 Bg4 9. Be2 Nf6 10. Nbd2 e6 11. O-O Be7 12. h3 Bh5 13. Ne5 Nxe5 14. Bxe5 {½-½ (41) Shkapenko,P (2418)-Sapis,W (2389) Jastrzebia Gora 2016}) 8... Nf6 {[%emt 0:00:00] [#]} 9. Na4 $1 {[%emt 0:00:00]} e5 {[%emt 0:00:00]} 10. Nb6 {[%emt 0:00:00]} Rb8 {[%emt 0:00:00]} 11. Qe2 {[%emt 0:03:01] White is more active.} Qc7 {[%emt 0:08:08]} (11... Be7 $14) 12. Rd1 {[%emt 0:15:51]} ({White should try} 12. Nf3 $16) 12... Be6 {[%emt 0:11:18]} ({Black should play} 12... Be7 $14) 13. Nf3 {[%emt 0:04:21][%cal Rf3e5]} d4 {[%emt 0:06:05]} 14. c3 {[%emt 0:03:11][%cal Bc2c3,Bc3d4,Bd4d5,Bd5d6,Bd6c7][%mdl 32]} d3 {[%emt 0:20:25] [#]} 15. Qe3 {[%emt 0:06:53] Black must now prevent c4.} ({And not} 15. Qxd3 e4 16. Qe3 exf3 $15) 15... e4 {[%emt 0:04:23]} 16. Nd4 {[%emt 0:00:20]} ({White has to play} 16. Ng5 $16) 16... Nxd4 {[%emt 0:11:31]} (16... Be7 $14) 17. cxd4 {[%emt 0:00:20] Threatens to win with f3.} Bd6 {[%emt 0:02:19] This move loses the game for Black.} 18. d5 $1 $18 {[%emt 0:02:52]} Bf4 {[%emt 0:03:53]} 19. d6 {[%emt 0:04:02]} d2+ {[%emt 0:04:44]} (19... Qxd6 $142 20. cxd6 Bxe3 21. fxe3 Rd8 22. Bxf6 gxf6) 20. Rxd2 {[%emt 0:03:20] Really sharp!} Bxe3 {[%emt 0:01:46]} 21. dxc7 {[%emt 0:00:05]} Bxd2+ {[%emt 0:00:09]} 22. Kxd2 {[%emt 0:00:05]} Rc8 {[%emt 0:00:11]} 23. Nxc8 {[%emt 0:00:27]} Bxc8 {[%emt 0:00:02]} 24. Bc4 {[%emt 0:01:32]} O-O $2 {[%emt 0:05:28]} (24... Ke7 25. a4 Be6) 25. Bxf6 {[%emt 0:03:02] White is clearly winning.} gxf6 {[%emt 0:00:02]} 26. Ke3 {[%emt 0:00:07]} Re8 {[%emt 0:00:40]} 27. Rd1 {[%emt 0:00:08]} f5 {[%emt 0:01:16]} 28. Rd8 {[%emt 0:06:21]} Rf8 {[%emt 0:00:27]} 29. b5 {[%emt 0:00:34][%cal Bb4b5,Bb5b6][%mdl 32]} Kg7 30. b6 {Weighted Error Value: White=0.14 (very precise) /Black=0.45} 1-0

[Event "GER-ch Youth-U14 2022"]
[Site "Willingen"]
[Date "2022.06.06"]
[Round "3.18"]
[White "Uhlmann, Tim"]
[Black "Mainka, Ingmar"]
[Result "1/2-1/2"]
[ECO "B34"]
[WhiteElo "1776"]
[BlackElo "1427"]
[Annotator "NA RC COMBH"]
[PlyCount "52"]
[EventDate "2022.06.05"]
[EventType "swiss"]
[EventRounds "9"]
[EventCountry "GER"]
[SourceTitle "playchess.com"]
[Source "ChessBase"]
[SourceQuality "1"]
[TimeControl "40/4500+30:900+30"]

1. e4 {[%emt 0:00:00]} c5 {[%emt 0:00:00]} 2. Nf3 {[%emt 0:00:00]} Nc6 {[%emt 0:00:00]} 3. d4 {[%emt 0:00:00]} cxd4 {[%emt 0:00:00]} 4. Nxd4 {[%emt 0:00:00]} g6 {[%emt 0:00:00]} 5. Nc3 {[%emt 0:00:00]} Bg7 {[%emt 0:00:00]} 6. Be3 {[%emt 0:00:00]} Nf6 {[%emt 0:00:00]} 7. f3 {[%emt 0:00:00]} O-O {[%emt 0:00:00]} 8. Bc4 {[%emt 0:00:00]} Qb6 {[%emt 0:00:00]} 9. Qd2 {[%emt 0:00:00]} Nxe4 {[%emt 0:00:00]} 10. fxe4 {[%emt 0:00:00]} Nxd4 {[%emt 0:00:00]} 11. O-O-O {[%emt 0:00:00]} Qb4 {[%emt 0:01:07]} 12. Bxf7+ {[%emt 0:00:00]} Rxf7 {[%emt 0:00:40]} 13. Bxd4 {[%emt 0:00:00]} Bxd4 {[%emt 0:01:20]} 14. Qxd4 {[%emt 0:00:00]} Qxd4 {[%emt 0:00:08]} 15. Rxd4 {[%emt 0:00:00]} d6 {[%emt 0:01:06]} 16. Nd5 {[%emt 0:00:42]} Bd7 {[%emt 0:04:15]} 17. Re1 {[%emt 0:03:14]} Bc6 {[%emt 0:08:08]} 18. Re2 {[%emt 0:29:53]} Rc8 {[%emt 0:10:58]} 19. b3 {[%emt 0:04:22]} Kf8 {[%emt 0:09:45]} 20. Kb2 {[%emt 0:04:56]} Ke8 {[%emt 0:12:32]} 21. c4 {[%emt 0:16:02]} b5 {[%emt 0:04:08]} 22. Rc2 {[%emt 0:05:30]} Bxd5 {[%emt 0:05:25]} 23. cxd5 {[%emt 0:03:05]} Rxc2+ {[%emt 0:07:00]} 24. Kxc2 {[%emt 0:00:09]} Kd7 {[%emt 0:00:38]} 25. Rd2 {[%emt 0:05:05]} Kc7 {[%emt 0:02:23]} 26. b4 {[%emt 0:07:06]} Rf1 {[%emt 0:00:35]} 1/2-1/2

[Event "GER-ch Youth-U14 2022"]
[Site "Willingen"]
[Date "2022.06.06"]
[Round "3.19"]
[White "Eichhorn, Valentin"]
[Black "Weyerer, Noah"]
[Result "0-1"]
[ECO "A96"]
[WhiteElo "1565"]
[BlackElo "1555"]
[Annotator "NA RC COMBH"]
[PlyCount "76"]
[EventDate "2022.06.05"]
[EventType "swiss"]
[EventRounds "9"]
[EventCountry "GER"]
[SourceTitle "playchess.com"]
[Source "ChessBase"]
[SourceQuality "1"]
[TimeControl "40/4500+30:900+30"]

1. d4 {[%emt 0:00:00]} e6 {[%emt 0:00:00]} 2. c4 {[%emt 0:00:00]} f5 {[%emt 0:00:00]} 3. g3 {[%emt 0:00:00]} Nf6 {[%emt 0:00:00]} 4. Bg2 {[%emt 0:00:00]} Be7 {[%emt 0:00:00]} 5. Nf3 {[%emt 0:00:00]} O-O {[%emt 0:00:00]} 6. O-O {[%emt 0:00:00]} d6 {[%emt 0:00:00]} 7. Nc3 {[%emt 0:00:00]} Ne4 {[%emt 0:00:00]} 8. Qc2 {[%emt 0:00:00]} Nxc3 {[%emt 0:00:00]} 9. Qxc3 {[%emt 0:00:00]} Bf6 {[%emt 0:00:00]} 10. Qc2 {[%emt 0:00:57]} e5 {[%emt 0:00:00]} 11. dxe5 {[%emt 0:06:06]} dxe5 {[%emt 0:00:00]} 12. Rd1 {[%emt 0:04:25]} Qe7 {[%emt 0:00:00]} 13. e4 {[%emt 0:08:04]} f4 {[%emt 0:01:42]} 14. Bd2 {[%emt 0:22:27]} g5 {[%emt 0:04:36]} 15. Ne1 {[%emt 0:01:17]} Nc6 {[%emt 0:09:22]} 16. Bc3 {[%emt 0:08:17]} Be6 {[%emt 0:02:15]} 17. b3 {[%emt 0:01:05]} Qf7 {[%emt 0:11:03]} 18. Nd3 {[%emt 0:02:20]} Qh5 {[%emt 0:16:18]} 19. Rd2 {[%emt 0:08:13]} f3 {[%emt 0:06:19]} 20. Qd1 {[%emt 0:02:22]} Bg7 {[%emt 0:05:13]} 21. Ne1 {[%emt 0:03:16]} Bg4 {[%emt 0:01:58]} 22. Bf1 {[%emt 0:02:06]} Rf6 {[%emt 0:11:03]} 23. Rd3 {[%emt 0:02:40]} Rh6 {[%emt 0:05:28]} 24. h3 {[%emt 0:04:51]} Rf8 {[%emt 0:04:07]} 25. Nxf3 {[%emt 0:02:18]} Bxf3 {[%emt 0:02:50]} 26. Rxf3 {[%emt 0:00:31]} Qxf3 {[%emt 0:00:36]} 27. Qxf3 {[%emt 0:00:11]} Rxf3 {[%emt 0:00:07]} 28. Bd2 {[%emt 0:00:11]} Rg6 {[%emt 0:01:17]} 29. Be2 {[%emt 0:00:54]} Nd4 {[%emt 0:00:54]} 30. Kf1 {[%emt 0:00:40]} Nxe2 {[%emt 0:00:18]} 31. Kxe2 {[%emt 0:00:01]} Rf7 {[%emt 0:00:41]} 32. Rd1 {[%emt 0:00:24]} Rd6 {[%emt 0:01:10]} 33. Be3 {[%emt 0:00:29]} Rxd1 {[%emt 0:00:35]} 34. Kxd1 {[%emt 0:00:07]} Rd7+ {[%emt 0:00:04]} 35. Ke2 {[%emt 0:00:05]} h6 {[%emt 0:00:17]} 36. b4 {[%emt 0:02:44]} b6 {[%emt 0:01:19]} 37. a4 {[%emt 0:03:00]} Bf8 {[%emt 0:00:38]} 38. Bd2 {[%emt 0:01:31]} Rd4 {[%emt 0:00:42]} 0-1

[Event "GER-ch Youth-U14 2022"]
[Site "Willingen"]
[Date "2022.06.06"]
[Round "3.20"]
[White "Kempe, Caius Emilian"]
[Black "Miller, Elias"]
[Result "1-0"]
[ECO "D20"]
[WhiteElo "1973"]
[BlackElo "1548"]
[Annotator "TA"]
[PlyCount "41"]
[EventDate "2022.06.05"]
[EventType "swiss"]
[EventRounds "9"]
[EventCountry "GER"]
[SourceTitle "playchess.com"]
[Source "ChessBase"]
[SourceQuality "1"]
[TimeControl "40/4500+30:900+30"]

{[%evp 9,41,20,105,106,176,166,227,247,237,192,476,443,468,469,574,577,607,597,720,595,818,545,537,518,518,534,838,836,802,661,1262,1249,29993,29994]} 1. d4 {[%emt 0:00:00]} d5 {[%emt 0:00:00]} 2. c4 {[%emt 0:00:00]} dxc4 {[%emt 0:00:00]} 3. e3 {[%emt 0:00:00]} e5 {[%emt 0:00:00]} 4. Bxc4 {[%emt 0:00:00]} exd4 {[%emt 0:00:00]} 5. Nf3 {[%emt 0:00:00]} Nf6 {[%emt 0:00:00]} (5... Bb4+ $11 {remains equal.} 6. Bd2 Bxd2+ 7. Qxd2 (7. Kxd2 dxe3+ 8. Ke2 Qf6 $17) 7... Nf6) 6. Qb3 $16 {[%emt 0:00:00] D20: Queen's Gambit Accepted: 3 e3 and 3 e4.} ({Much worse is} 6. Nxd4 $6 Bd6 $11) ({But not} 6. exd4 Bb4+ 7. Nc3 Qe7+ 8. Ne5 O-O $14) ({Much weaker is} 6. Qxd4 Bd6 $11) 6... Qe7 {[%emt 0:00:00] [#]} (6... Bd6) (6... Bd6 $16) 7. O-O $1 $18 {[%emt 0:01:13]} Qb4 {[%emt 0:11:38]} (7... d3 $142) 8. Bxf7+ {[%emt 0:00:20] White is clearly better.} Kd8 {[%emt 0:00:16] [#]} 9. Qc2 $146 {[%emt 0:03:20]} ({Predecessor:} 9. Qd3 Nc6 10. exd4 Bd6 11. Nc3 Rf8 12. Nd5 Nxd5 13. Bxd5 Ne7 14. Be4 Bd7 15. Bg5 {1-0 (24) Erdene,G (2320)-Jigjidsuren,P (2256) Ulaanbaatar 2011}) 9... c5 $2 {[%emt 0:02:42]} (9... Nc6 10. exd4 Bg4) 10. a3 {[%emt 0:01:13]} Qb6 {[%emt 0:05:11]} 11. exd4 {[%emt 0:00:06]} cxd4 {[%emt 0:00:34] [#]} 12. Nxd4 $1 {[%emt 0:01:06][%mdl 512] Threatens to win with Rd1.} Bd6 {[%emt 0:09:49]} (12... Nc6 13. Be3) 13. Rd1 {[%emt 0:05:54]} Ke7 {[%emt 0:03:12]} 14. Bc4 {[%emt 0:04:54]} Rd8 {[%emt 0:03:03]} 15. Qe2+ {[%emt 0:05:02]} Kf8 {[%emt 0:01:29]} 16. Be3 {[%emt 0:00:11][%cal Bc1e3,Be3d4,Bd4c5][%mdl 32]} Qc7 {[%emt 0:09:46]} 17. Nc3 {[%emt 0:01:42] aiming for Ndb5.} Nc6 {[%emt 0:03:27]} 18. Ncb5 {[%emt 0:05:56]} Nxd4 {[%emt 0:02:07]} 19. Bxd4 {[%emt 0:01:40]} Bxh2+ {[%emt 0:03:41]} 20. Kh1 {[%emt 0:01:40] White threatens Bc5+ and mate.} Qf4 {[%emt 0:05:24]} 21. Bc5+ {[%emt 0:00:17] Black did not feel at home in the position after the opening.  Weighted Error Value: White=0.38/Black=1.35} 1-0

[Event "GER-ch Youth-U14 2022"]
[Site "Willingen"]
[Date "2022.06.06"]
[Round "3.21"]
[White "Goepfert, Gregor"]
[Black "Vihan, Shourya"]
[Result "1-0"]
[ECO "B13"]
[WhiteElo "1446"]
[BlackElo "1385"]
[Annotator "NA RC COMBH"]
[PlyCount "87"]
[EventDate "2022.06.05"]
[EventType "swiss"]
[EventRounds "9"]
[EventCountry "GER"]
[SourceTitle "playchess.com"]
[Source "ChessBase"]
[SourceQuality "1"]
[TimeControl "40/4500+30:900+30"]

1. e4 {[%emt 0:00:00]} c6 {[%emt 0:00:00]} 2. d4 {[%emt 0:00:00]} d5 {[%emt 0:00:00]} 3. exd5 {[%emt 0:00:00]} cxd5 {[%emt 0:00:00]} 4. Bd3 {[%emt 0:00:00]} Nc6 {[%emt 0:00:00]} 5. c3 {[%emt 0:00:00]} Nf6 {[%emt 0:00:00]} 6. h3 {[%emt 0:00:00]} e5 {[%emt 0:00:00]} 7. dxe5 {[%emt 0:00:00]} Nxe5 {[%emt 0:00:00]} 8. Be2 {[%emt 0:00:00]} Be6 {[%emt 0:00:00]} 9. Nf3 {[%emt 0:00:00]} Bd6 {[%emt 0:00:00]} 10. Nxe5 {[%emt 0:00:00]} Bxe5 {[%emt 0:00:00]} 11. Be3 {[%emt 0:00:00]} O-O {[%emt 0:01:26]} 12. Na3 {[%emt 0:03:18]} Qa5 {[%emt 0:04:49]} 13. Nb5 {[%emt 0:04:06]} Ne4 {[%emt 0:11:20]} 14. O-O {[%emt 0:01:44]} a6 {[%emt 0:05:42]} 15. Nd4 {[%emt 0:00:23]} Qd8 {[%emt 0:02:39]} 16. Bg4 {[%emt 0:03:33]} Qd7 {[%emt 0:06:15]} 17. f4 {[%emt 0:11:04]} Bxd4 {[%emt 0:07:17]} 18. Bxd4 {[%emt 0:00:50]} Ng3 {[%emt 0:03:13]} 19. Rf3 {[%emt 0:06:36]} f5 {[%emt 0:11:13]} 20. Rxg3 {[%emt 0:01:48]} fxg4 {[%emt 0:00:06]} 21. Qd2 {[%emt 0:07:49]} Rf7 {[%emt 0:01:09]} 22. hxg4 {[%emt 0:01:18]} Bxg4 {[%emt 0:00:19]} 23. Rf1 {[%emt 0:04:16]} Re8 {[%emt 0:02:09]} 24. Re3 {[%emt 0:03:18]} Rfe7 {[%emt 0:03:32]} 25. Re5 {[%emt 0:04:08]} Bf5 {[%emt 0:01:46]} 26. Qf2 {[%emt 0:05:16]} Be4 {[%emt 0:04:16]} 27. Qg3 {[%emt 0:05:10]} Rf7 {[%emt 0:03:01]} 28. Rxe8+ {[%emt 0:03:32]} Qxe8 {[%emt 0:00:02]} 29. f5 {[%emt 0:00:31]} Qf8 {[%emt 0:04:33]} 30. f6 {[%emt 0:00:56]} g6 {[%emt 0:00:44]} 31. Qe5 {[%emt 0:02:09]} Kh8 {[%emt 0:01:55]} 32. b4 {[%emt 0:02:04]} Kg8 {[%emt 0:01:09]} 33. Rf4 {[%emt 0:01:45]} b5 {[%emt 0:02:02]} 34. Qe6 {[%emt 0:01:01]} Qa8 {[%emt 0:00:50]} 35. Rh4 {[%emt 0:01:26]} Bf5 {[%emt 0:00:44]} 36. Qe3 {[%emt 0:01:09]} Qc8 {[%emt 0:01:39]} 37. Qe5 {[%emt 0:01:39]} Qa8 {[%emt 0:01:38]} 38. g4 {[%emt 0:00:23]} Be4 {[%emt 0:01:12]} 39. Qe6 {[%emt 0:00:38]} Qb7 {[%emt 0:01:22]} 40. Bc5 {[%emt 0:01:43]} Qb8 {[%emt 0:01:35]} 41. Rh3 {[%emt 0:18:19]} Qa8 {[%emt 0:16:16]} 42. Rxh7 {[%emt 0:00:42]} Kxh7 {[%emt 0:00:06]} 43. Qxf7+ {[%emt 0:00:11]} Kh6 {[%emt 0:00:06]} 44. Be3+ {[%emt 0:00:09]} 1-0

[Event "GER-ch Youth-U14 2022"]
[Site "Willingen"]
[Date "2022.06.06"]
[Round "3.22"]
[White "Shapiro, Danil"]
[Black "Grundmann, Max"]
[Result "1-0"]
[ECO "B24"]
[WhiteElo "1468"]
[BlackElo "1358"]
[Annotator "NA RC COMBH"]
[PlyCount "61"]
[EventDate "2022.06.05"]
[EventType "swiss"]
[EventRounds "9"]
[EventCountry "GER"]
[SourceTitle "playchess.com"]
[Source "ChessBase"]
[SourceQuality "1"]
[TimeControl "40/4500+30:900+30"]

1. e4 {[%emt 0:00:00]} c5 {[%emt 0:00:00]} 2. Nc3 {[%emt 0:00:00]} Nc6 {[%emt 0:00:00]} 3. d3 {[%emt 0:00:00]} g6 {[%emt 0:00:00]} 4. g3 {[%emt 0:00:00]} Bg7 {[%emt 0:00:00]} 5. Bg2 {[%emt 0:00:00]} Nf6 {[%emt 0:00:00]} 6. f4 {[%emt 0:00:00]} d6 {[%emt 0:00:00]} 7. Nf3 {[%emt 0:00:00]} O-O {[%emt 0:00:00]} 8. O-O {[%emt 0:00:00]} Bg4 {[%emt 0:00:00]} 9. h3 {[%emt 0:00:00]} Bxf3 {[%emt 0:00:00]} 10. Qxf3 {[%emt 0:00:00]} Nd4 {[%emt 0:00:00]} 11. Qd1 {[%emt 0:00:00]} Rb8 {[%emt 0:00:00]} 12. Ne2 {[%emt 0:00:00]} Nxe2+ {[%emt 0:01:26]} 13. Qxe2 {[%emt 0:00:00]} e6 {[%emt 0:03:30]} 14. g4 {[%emt 0:00:00]} h5 {[%emt 0:03:13]} 15. e5 {[%emt 0:00:00]} dxe5 {[%emt 0:02:18]} 16. fxe5 {[%emt 0:00:00]} Qd4+ {[%emt 0:01:31]} 17. Kh1 {[%emt 0:00:00]} Nd7 {[%emt 0:01:49]} 18. gxh5 {[%emt 0:00:05]} Qxe5 {[%emt 0:00:28]} 19. Qxe5 {[%emt 0:00:21]} Nxe5 {[%emt 0:00:15]} 20. hxg6 {[%emt 0:15:01]} Nxg6 {[%emt 0:00:21]} 21. Rb1 {[%emt 0:00:09]} b6 {[%emt 0:02:45]} 22. Be4 {[%emt 0:03:22]} f5 {[%emt 0:03:02]} 23. Bc6 {[%emt 0:05:14]} Rbd8 {[%emt 0:01:46]} 24. Rg1 {[%emt 0:01:48]} Rd4 {[%emt 0:03:15]} 25. Rxg6 {[%emt 0:02:19]} Rh4 {[%emt 0:00:36]} 26. Rg3 {[%emt 0:01:06]} Kh7 {[%emt 0:00:19]} 27. Bg5 Rd4 {[%emt 0:01:44]} 28. c3 {[%emt 0:08:30]} f4 {[%emt 0:03:25]} 29. Rf3 {[%emt 0:00:57]} Rd6 {[%emt 0:01:14]} 30. Be4+ {[%emt 0:00:07]} Kg8 {[%emt 0:00:24]} 31. Be7 {[%emt 0:00:04]} 1-0